bitfinex/quotes_ETHUSD_20251217
["timestamp","ask_amount","ask_price","bid_price","bid_amount"]
[1766013676265,0.86988423,2828.7,2827.8,0.002]
[1766013676266,0.405504,2828.5,2827.8,0.002]
[1766013676669,0.405504,2828.5,2827.4,4.0975]
[1766013677071,0.46438023,2828.4,2827.4,4.0975]
[1766013678162,0.46438023,2828.4,2827.1,3.4086]
[1766013678361,0.405504,2828.3,2827.2,4.0975]
[1766013678584,0.405504,2828.3,2827.0,0.002]
[1766013678866,0.405504,2828.3,2827.1,4.0975]
[1766013679064,3.53581783,2828.2,2827.1,4.0975]
[1766013679269,1.2120829,2828.1,2827.1,4.0975]
[1766013680294,0.405504,2828.0,2827.0,0.002]
[1766013680467,0.405504,2828.0,2826.9,0.002]
[1766013681994,0.86988423,2827.8,2826.9,0.002]
[1766013682199,0.44060772,2827.7,2826.9,0.002]
[1766013682868,0.405504,2827.9,2826.9,0.002]
[1766013684281,0.46438023,2827.8,2826.9,0.002]
[1766013685571,0.405504,2827.9,2826.9,0.002]
[1766013686496,0.46438023,2827.8,2826.9,0.002]
[1766013687096,0.405504,2827.9,2826.9,0.002]
[1766013687272,0.44059792,2827.8,2826.9,4.0995]
[1766013687668,1.2120829,2828.1,2827.2,0.6889]
[1766013687999,1.2120829,2828.1,2827.2,4.0975]
[1766013688000,0.46438023,2828.0,2827.2,4.0975]
[1766013688189,0.74770267,2828.1,2827.2,4.0975]
[1766013688582,2.56,2828.0,2827.2,4.0975]
[1766013688782,0.33077027,2827.9,2827.2,4.0975]
[1766013688997,2.56,2828.0,2827.4,4.0975]
[1766013689569,0.46438023,2827.9,2827.5,4.0975]
[1766013692999,0.46438023,2827.9,2827.6,0.6889]
[1766013693304,0.46438023,2827.9,2827.1,3.4086]
[1766013693485,0.46438023,2827.9,2827.3,3.4086]
[1766013693686,0.46438023,2827.9,2827.5,3.4086]
[1766013694006,0.46438023,2827.9,2827.5,4.0975]
[1766013694487,0.46538023,2828.1,2827.5,4.0975]
[1766013694689,0.34897605,2828.0,2827.5,4.0975]
[1766013695087,0.34897605,2828.0,2827.6,0.6889]
[1766013695288,0.34897605,2828.0,2827.6,4.0975]
[1766013696103,0.34897605,2828.0,2827.1,4.0975]
[1766013696294,0.34897605,2828.0,2827.2,0.6889]
[1766013696498,0.43503171,2827.9,2827.2,4.0975]
[1766013697185,0.43503171,2827.9,2827.1,3.4086]
[1766013697510,0.46538023,2828.1,2827.5,4.0975]
[1766013697805,0.46538023,2828.1,2827.8,4.0975]
[1766013698189,0.46538023,2828.1,2827.3,6.15263365]
[1766013698512,0.46538023,2828.1,2827.7,4.0975]
[1766013699409,0.001,2828.0,2827.1,3.4086]
[1766013699612,0.001,2828.0,2827.2,4.0975]
[1766013699907,0.001,2828.0,2827.3,0.6889]
[1766013700083,0.001,2828.0,2827.4,0.6889]
[1766013700284,0.001,2828.0,2827.4,4.0975]
[1766013705716,0.001,2828.0,2827.0,3.8622]
[1766013705896,0.001,2828.0,2827.2,3.8622]
[1766013706714,0.001,2828.0,2827.3,3.8622]
[1766013706910,0.001,2828.0,2827.4,3.8622]
[1766013707496,0.001,2828.0,2827.5,0.6685]
[1766013707694,0.001,2828.0,2827.6,3.8622]
[1766013708091,0.001,2828.0,2827.8,3.8622]
[1766013708790,0.001,2828.0,2827.8,3.1937]
[1766013708991,0.001,2828.1,2828.0,3.8622]
[1766013709186,2.56,2828.8,2828.4,3.1937]
[1766013709424,2.56,2829.0,2828.1,3.8622]
[1766013709587,0.46438023,2828.9,2828.1,3.8622]
[1766013712805,3.99933179,2828.9,2827.8,4.18157]
[1766013713036,0.46438023,2828.7,2827.8,3.8622]
[1766013714902,0.46438023,2828.7,2827.9,0.6685]
[1766013715121,0.46438023,2828.7,2827.9,3.8622]
[1766013715726,0.46438023,2828.8,2828.0,6.15263365]
[1766013715935,0.001,2829.1,2828.4,3.8622]
[1766013716130,0.001,2828.7,2828.4,3.8622]
[1766013716941,0.001,2828.7,2828.3,0.6685]
[1766013717241,0.001,2828.7,2828.1,4.47746337]
[1766013718134,0.001,2828.7,2828.1,0.61526337]
[1766013718343,0.001,2828.7,2828.4,0.6685]
[1766013718639,0.001,2828.7,2828.5,3.8622]
[1766013719747,0.001,2828.7,2827.4,3.1937]
[1766013720040,0.001,2828.7,2827.5,3.8622]
[1766013720041,0.46438023,2828.2,2827.5,3.8622]
[1766013720251,0.66170139,2828.2,2827.8,0.6685]
[1766013720413,0.46438023,2828.5,2827.8,3.8622]
[1766013720611,0.46438023,2828.5,2827.3,0.6685]
[1766013720945,0.46438023,2828.2,2827.4,3.1937]
[1766013721233,0.46438023,2828.2,2827.3,0.6685]
[1766013721448,0.66170139,2828.1,2827.3,0.6685]
[1766013721610,0.405504,2828.3,2827.3,0.6685]
[1766013722434,0.405504,2828.5,2827.3,3.1937]
[1766013722631,0.46438023,2828.6,2827.6,0.6685]
[1766013722830,0.46438023,2828.6,2827.7,3.8622]
[1766013723329,0.46438023,2828.6,2827.8,3.8622]
[1766013723535,0.40006812,2828.5,2827.1,0.38642]
[1766013723758,0.40006812,2828.5,2827.5,0.6685]
[1766013723947,0.40006812,2828.5,2827.5,3.8622]
[1766013724643,0.40006812,2828.5,2827.6,0.6685]
[1766013724955,0.40006812,2828.5,2827.8,3.1937]
[1766013725158,0.40006812,2828.5,2827.8,3.8622]
[1766013725335,0.87088423,2828.7,2827.8,3.8622]
[1766013725531,0.87088423,2828.7,2827.8,3.1937]
[1766013725736,3.94170464,2828.7,2827.9,3.8622]
[1766013725941,0.46438023,2828.6,2827.9,3.8622]
[1766013727037,0.406504,2828.7,2827.9,3.8622]
[1766013727237,0.44060169,2828.6,2827.9,3.8622]
[1766013727568,0.90498192,2828.6,2827.9,3.8622]
[1766013729975,0.44060169,2828.6,2827.9,3.8622]
[1766013730139,0.46438023,2828.4,2828.0,0.688]
[1766013730345,0.46438023,2828.4,2828.1,4.109]
[1766013730548,2.56,2828.5,2828.2,0.688]
[1766013730856,2.56,2828.5,2828.3,4.109]
[1766013732156,2.56,2828.5,2828.4,4.0936]
[1766013732355,0.001,2828.7,2828.4,4.0936]
[1766013732861,0.001,2828.7,2828.5,0.6774]
[1766013733062,0.001,2828.7,2828.5,4.0936]
[1766013734546,0.001,2828.7,2828.0,3.4162]
[1766013734751,0.001,2828.7,2828.4,4.0936]
[1766013736368,0.001,2828.7,2828.4,3.4162]
[1766013736669,0.001,2828.7,2828.3,0.6774]
[1766013736865,0.001,2828.7,2828.0,3.4162]
[1766013737046,0.001,2828.7,2828.0,4.0936]
[1766013737238,0.001,2828.7,2828.1,0.40956]
[1766013738268,0.001,2828.7,2828.1,4.50316]
[1766013738572,0.001,2828.7,2828.3,3.4162]
[1766013738772,0.001,2828.7,2828.4,4.0936]
[1766013739268,0.001,2828.7,2828.4,3.4162]
[1766013739467,0.001,2829.1,2828.8,4.0936]
[1766013739682,0.001,2829.2,2829.1,0.6774]
[1766013739845,0.001,2829.2,2829.1,4.0936]
[1766013740377,0.001,2829.3,2829.2,0.6774]
[1766013740591,0.001,2829.3,2829.2,4.0936]
[1766013740797,3.53219596,2831.1,2829.7,0.6774]
[1766013741072,7.06439192,2831.1,2829.8,4.0936]
[1766013741276,0.46438023,2831.0,2829.5,3.4162]
[1766013741479,0.46438023,2831.0,2829.7,4.0936]
[1766013741480,6.14240304,2831.0,2829.7,4.0936]
[1766013741646,1.76763744,2830.9,2829.7,4.50296]
[1766013741976,1.36213344,2830.9,2829.8,3.4162]
[1766013742159,1.36213344,2830.9,2830.1,4.0936]
[1766013742370,0.46538023,2831.0,2830.2,0.6774]
[1766013742559,0.46538023,2831.0,2830.2,4.0936]
[1766013742560,0.001,2831.0,2830.2,4.0936]
[1766013742754,0.001,2831.0,2829.8,4.0936]
[1766013743068,0.001,2831.0,2830.2,3.4162]
[1766013743273,0.001,2831.0,2830.3,4.0936]
[1766013743446,0.40074878,2831.0,2830.3,4.0936]
[1766013743644,0.86512901,2831.0,2830.3,4.0936]
[1766013748535,0.46438023,2830.9,2829.8,3.4162]
[1766013748778,0.46438023,2830.9,2830.0,4.0936]
[1766013749354,0.46438023,2830.9,2830.1,4.0936]
[1766013749554,0.90413317,2830.9,2830.1,4.0936]
[1766013750675,0.46438023,2830.8,2830.1,4.0936]
[1766013750994,0.46438023,2830.8,2829.8,0.002]
[1766013750995,0.43975294,2830.9,2829.9,4.0936]
[1766013751151,0.43975294,2830.9,2830.0,4.0936]
[1766013751645,0.43975294,2830.9,2829.8,0.002]
[1766013751646,0.43975294,2830.9,2830.1,0.6774]
[1766013751861,0.44375161,2830.8,2830.1,0.6774]
[1766013753374,0.44375161,2830.8,2830.1,4.0936]
[1766013753580,0.43975294,2830.9,2830.1,4.0936]
[1766013753782,0.43975294,2830.9,2830.2,0.6774]
[1766013753955,0.43975294,2830.9,2830.2,4.0936]
[1766013754154,0.90413317,2830.9,2830.2,4.0936]
[1766013754966,3.97220163,2830.9,2830.2,4.0936]
[1766013755162,0.43975294,2830.9,2830.2,4.0936]
[1766013756084,0.90413317,2830.9,2830.2,4.0936]
[1766013756297,0.90413317,2830.9,2830.2,3.4162]
[1766013756466,0.46438023,2830.8,2830.2,4.0936]
[1766013758292,0.43975294,2830.9,2830.2,4.0936]
[1766013761089,0.46438023,2830.8,2830.2,4.0936]
[1766013761481,0.405504,2830.7,2829.8,3.8913]
[1766013761662,0.44376099,2830.8,2830.1,3.1796]
[1766013761860,0.44376099,2830.8,2830.2,3.8893]
[1766013762065,0.46538023,2831.0,2830.2,3.8893]
[1766013762279,0.46438023,2830.9,2830.2,3.8893]
[1766013762664,0.46438023,2830.9,2829.9,3.8893]
[1766013763467,0.46438023,2830.7,2829.9,3.8913]
[1766013764695,3.99788167,2830.9,2829.9,3.8913]
[1766013764998,4.75110601,2830.9,2830.0,0.38933]
[1766013766582,4.75110601,2830.9,2829.9,3.8913]
[1766013766583,0.405504,2830.8,2829.9,3.8913]
[1766013766894,0.405504,2830.8,2829.9,0.002]
[1766013768202,0.46438023,2830.6,2829.9,0.002]
[1766013768679,0.46438023,2830.7,2829.9,0.002]
[1766013774924,0.405504,2830.8,2829.9,3.8913]
[1766013775124,0.51566402,2830.7,2829.9,3.8913]
[1766013776313,0.51566402,2830.7,2830.1,3.1796]
[1766013776517,0.001,2830.9,2830.3,3.8893]
[1766013776892,0.001,2830.9,2830.3,0.7097]
[1766013777097,0.001,2830.9,2830.1,3.8893]
[1766013777488,0.001,2830.9,2830.1,3.1796]
[1766013777812,0.001,2830.9,2830.3,3.8893]
[1766013779322,0.001,2830.9,2830.2,0.31796]
[1766013779521,0.001,2830.9,2830.0,3.8893]
[1766013779840,0.001,2830.9,2829.9,0.002]
[1766013780413,0.001,2830.9,2829.9,3.8913]
[1766013780935,0.405504,2830.8,2829.9,0.002]
[1766013781111,0.65480546,2830.7,2829.9,0.002]
[1766013781311,0.46438023,2830.6,2829.9,0.002]
[1766013781512,1.11918569,2830.7,2829.9,0.002]
[1766013781711,1.11918569,2830.7,2830.0,0.7097]
[1766013781923,1.11918569,2830.7,2830.0,3.8893]
[1766013782115,1.11918569,2830.7,2829.9,0.002]
[1766013782740,0.50573175,2830.6,2829.9,0.002]
[1766013787046,0.50573175,2830.6,2829.3,3.53442716]
[1766013787047,0.86988423,2830.5,2829.3,3.8893]
[1766013787347,0.46438023,2830.2,2829.2,0.7097]
[1766013787548,0.66059309,2830.1,2829.3,0.7097]
[1766013788965,0.66059309,2830.1,2829.3,3.8893]
[1766013789141,0.46438023,2830.3,2829.4,3.8893]
[1766013790161,0.405504,2830.5,2829.4,3.1796]
[1766013790333,0.405504,2830.5,2829.6,4.1276]
[1766013791145,3.93846195,2830.5,2829.6,4.1276]
[1766013792843,3.93846195,2830.5,2829.0,3.21]
[1766013793048,3.93846195,2830.5,2829.3,3.9029]
[1766013793049,0.84414056,2830.4,2829.3,3.9029]
[1766013793551,0.46438023,2830.2,2829.3,3.9029]
[1766013794766,0.46438023,2830.2,2829.4,0.6929]
[1766013795061,0.84414056,2830.4,2829.6,0.6929]
[1766013795262,0.84414056,2830.4,2829.3,0.002]
[1766013795263,0.84414056,2830.4,2829.8,0.6929]
[1766013795465,0.84414056,2830.4,2829.8,3.9029]
[1766013796247,0.84414056,2830.4,2829.4,3.21]
[1766013796456,0.52469798,2830.3,2829.5,3.9029]
[1766013797473,0.52469798,2830.3,2829.6,0.6929]
[1766013797771,0.52469798,2830.3,2829.6,3.9029]
[1766013800573,0.84414056,2830.4,2829.7,3.9029]
[1766013808484,0.001,2830.6,2830.2,0.6929]
[1766013808697,7.06667785,2830.6,2829.6,0.002]
[1766013808900,0.46438023,2829.4,2828.7,0.002]
[1766013809073,0.46438023,2829.4,2828.6,0.002]
[1766013809470,1.32535337,2829.4,2828.6,0.002]
[1766013809901,0.46438023,2829.1,2828.1,3.9049]
[1766013810079,0.66089429,2829.0,2828.1,3.9049]
[1766013811807,0.66089429,2829.0,2828.4,0.002]
[1766013813238,0.66089429,2829.0,2828.1,3.9049]
[1766013813239,6.14456268,2828.9,2828.1,0.002]
[1766013813376,0.46438023,2828.8,2828.1,3.9049]
[1766013813576,0.66089429,2829.0,2828.2,3.9029]
[1766013814400,4.19575359,2829.0,2828.1,0.002]
[1766013816410,0.66089429,2829.0,2828.1,0.002]
[1766013816613,6.60894291,2829.3,2828.2,3.9029]
[1766013817718,8.34222571,2829.3,2828.1,0.002]
[1766013818611,0.46438023,2829.1,2828.4,0.6929]
[1766013818786,0.46438023,2829.2,2828.6,0.6929]
[1766013818986,0.39989206,2829.1,2828.6,3.9029]
[1766013819516,6.14456268,2830.1,2829.0,3.21]
[1766013819715,0.46438023,2829.9,2829.0,3.9029]
[1766013820390,0.46438023,2829.7,2829.0,3.9029]
[1766013820600,0.75320175,2829.6,2829.0,3.9029]
[1766013820799,0.75320175,2829.6,2828.5,6.14595011]
[1766013820999,0.75320175,2829.6,2828.7,3.8669]
[1766013823118,0.75320175,2829.6,2828.7,3.2058]
[1766013823411,0.46438023,2829.5,2828.8,3.8669]
[1766013823619,0.98598544,2829.5,2828.8,3.8669]
[1766013826228,0.52160521,2829.5,2828.9,0.6611]
[1766013826422,0.52160521,2829.5,2829.2,0.6611]
[1766013826663,0.75320175,2829.6,2829.2,3.8669]
[1766013827034,0.46438023,2829.8,2829.2,3.8669]
[1766013827234,4.28681864,2830.0,2829.2,3.8669]
[1766013827552,0.001,2829.5,2829.2,3.8669]
[1766013828542,0.001,2829.5,2829.0,0.6611]
[1766013828755,0.001,2829.5,2829.1,3.8669]
[1766013829462,0.001,2829.5,2829.2,3.8669]
[1766013834658,0.001,2829.5,2828.8,6.14595011]
[1766013834863,0.001,2829.5,2829.1,3.2058]
[1766013835045,0.001,2829.5,2829.1,3.8669]
[1766013836871,0.001,2829.5,2828.9,4.48149501]
[1766013837167,0.001,2829.5,2829.0,3.8669]
[1766013837357,0.001,2829.5,2828.6,3.2058]
[1766013837543,0.001,2829.5,2828.8,3.2058]
[1766013837753,0.001,2829.5,2828.8,3.8669]
[1766013838167,0.001,2829.5,2828.8,3.2058]
[1766013838476,0.001,2829.5,2828.9,3.8669]
[1766013838684,0.001,2829.5,2829.0,3.8669]
[1766013842002,0.001,2829.5,2829.2,3.8669]
[1766013842359,0.001,2829.5,2828.6,3.2058]
[1766013842675,0.001,2829.5,2828.6,3.8669]
[1766013842871,0.001,2829.5,2828.7,3.8669]
[1766013843075,6.14595011,2829.4,2828.5,0.6611]
[1766013843304,0.66113303,2829.4,2828.8,3.8669]
[1766013843594,0.001,2829.5,2828.8,3.8669]
[1766013844805,0.001,2829.5,2828.5,3.8669]
[1766013845104,3.53519332,2829.5,2828.5,3.8669]
[1766013845796,3.53519332,2829.5,2828.5,3.2058]
[1766013846104,3.53519332,2829.5,2828.6,3.8669]
[1766013846405,0.39995736,2829.4,2828.6,3.8669]
[1766013850485,0.39995736,2829.4,2828.7,0.673]
[1766013850694,0.39995736,2829.4,2828.7,3.9901]
[1766013850996,0.46438023,2829.4,2828.4,3.2566]
[1766013851191,0.46438023,2829.4,2828.5,3.9376]
[1766013851394,0.46438023,2829.4,2828.6,3.9376]
[1766013853595,0.46438023,2829.4,2828.7,0.683]
[1766013853818,0.86434153,2829.4,2828.7,3.9376]
[1766013854827,3.93429197,2829.4,2828.4,3.9396]
[1766013855126,0.3999613,2829.4,2828.6,3.9376]
[1766013856927,0.4009613,2829.4,2828.6,3.9376]
[1766013858320,0.4009613,2829.4,2828.7,0.683]
[1766013858627,0.4009613,2829.4,2828.7,3.9376]
[1766013859228,0.4009613,2829.4,2828.7,3.2546]
[1766013860329,0.001,2829.4,2828.9,3.9376]
[1766013861098,0.001,2829.4,2828.5,3.2546]
[1766013861311,0.001,2829.4,2828.7,3.2546]
[1766013861513,0.001,2829.4,2828.7,3.9376]
[1766013864242,0.001,2829.4,2829.0,0.683]
[1766013864444,0.001,2829.4,2829.1,3.9376]
[1766013865010,0.001,2829.4,2828.4,0.002]
[1766013865011,0.001,2829.4,2828.6,0.683]
[1766013865215,0.001,2829.4,2828.8,0.683]
[1766013865542,0.001,2829.4,2828.4,0.002]
[1766013865543,0.001,2829.4,2829.0,3.2546]
[1766013865712,0.001,2829.4,2829.1,0.683]
[1766013866542,0.001,2829.4,2829.0,3.9376]
[1766013868119,0.001,2829.4,2829.1,3.9376]
[1766013868318,0.001,2829.4,2829.3,3.9376]
[1766013868552,0.001,2829.5,2829.3,3.2546]
[1766013868752,0.001,2829.5,2829.4,3.9376]
[1766013868966,0.46438023,2830.1,2829.4,3.9376]
[1766013869868,0.46438023,2830.1,2829.0,0.683]
[1766013870165,0.46438023,2830.1,2829.1,3.9376]
[1766013870866,0.46438023,2829.9,2829.1,3.9376]
[1766013871054,1.2175277,2829.9,2829.1,3.9376]
[1766013871253,0.46438023,2830.0,2829.2,3.9376]
[1766013871959,0.46438023,2830.1,2829.4,3.9376]
[1766013872164,3.53415556,2830.4,2829.5,3.9376]
[1766013872165,3.99763072,2830.3,2829.5,3.9376]
[1766013872470,0.46438023,2830.3,2829.5,3.9376]
[1766013872651,0.46538023,2830.4,2829.7,0.683]
[1766013872834,0.46538023,2830.4,2829.7,3.9376]
[1766013873036,3.9984551,2830.4,2829.7,3.9376]
[1766013873237,0.46438023,2830.3,2829.7,3.9376]
[1766013875775,0.46438023,2830.3,2828.9,3.53488725]
[1766013875971,0.53196792,2830.3,2829.4,0.683]
[1766013876133,0.001,2830.4,2829.5,3.9376]
[1766013876470,0.46438023,2830.3,2829.5,3.9376]
[1766013877074,0.46438023,2830.3,2829.6,0.683]
[1766013877371,0.46438023,2830.3,2829.6,3.9376]
[1766013877771,0.46438023,2830.3,2829.0,1.32174233]
[1766013877772,3.99761136,2830.3,2829.1,3.2546]
[1766013877936,3.99761136,2830.3,2829.5,3.2546]
[1766013878775,7.53084249,2830.3,2828.5,6.14749914]
[1766013879009,0.46438023,2830.0,2828.8,3.9376]
[1766013879301,0.66118794,2829.9,2828.5,3.9376]
[1766013879459,3.53381864,2829.8,2828.5,3.9376]
[1766013879966,0.46438023,2829.7,2828.5,0.683]
[1766013880577,0.46438023,2829.7,2828.5,3.9376]
[1766013880786,1.45404898,2829.6,2828.5,4.33156]
[1766013880985,6.14749914,2829.2,2828.4,0.002]
[1766013881159,0.46438023,2829.1,2828.1,0.002]
[1766013881354,0.46438023,2829.1,2828.0,3.1612]
[1766013881355,0.46438023,2828.8,2828.0,0.002]
[1766013881555,0.46438023,2828.5,2827.5,0.002]
[1766013883570,3.53556781,2828.4,2827.5,0.002]
[1766013884415,3.99988437,2828.5,2827.5,0.002]
[1766013885417,0.66118794,2828.7,2827.5,0.002]
[1766013885621,0.46438023,2828.9,2828.0,3.7962]
[1766013886922,0.46438023,2828.9,2828.1,3.7962]
[1766013888019,3.99924331,2829.0,2828.2,0.637]
[1766013888219,3.99924331,2829.0,2828.2,3.7962]
[1766013888416,0.39992433,2828.9,2828.2,3.7962]
[1766013889711,0.46438023,2828.7,2828.2,3.7962]
[1766013890986,4.39931114,2828.9,2828.2,3.7962]
[1766013893831,0.39992433,2828.9,2828.3,0.637]
[1766013894032,3.99877944,2829.4,2828.5,3.7962]
[1766013894327,3.53439921,2829.4,2828.5,3.7962]
[1766013894528,0.46438023,2829.3,2828.5,3.7962]
[1766013895235,0.46438023,2829.3,2828.6,3.7962]
[1766013895533,3.53439921,2829.4,2828.6,3.7962]
[1766013895534,0.39987794,2829.2,2828.6,3.7962]
[1766013895739,6.81145062,2829.9,2828.7,0.637]
[1766013896049,0.46438023,2829.7,2828.8,3.7962]
[1766013897028,0.46438023,2829.7,2828.3,3.1592]
[1766013897230,0.46438023,2829.7,2828.6,0.637]
[1766013897528,0.83929907,2829.6,2828.6,3.7962]
[1766013898211,0.46438023,2829.4,2828.6,3.7962]
[1766013900224,4.83781784,2829.6,2828.6,3.7962]
[1766013900414,8.37195638,2829.6,2828.7,3.7962]
[1766013900614,8.37195638,2829.6,2828.3,0.637]
[1766013900923,0.83719564,2829.5,2828.4,3.7962]
[1766013902130,0.46438023,2829.3,2828.4,3.7962]
[1766013902427,0.46438023,2829.3,2828.1,0.002]
[1766013902428,0.44643375,2829.2,2828.1,0.002]
[1766013902603,0.46438023,2828.9,2827.6,3.7982]
[1766013902800,0.66146429,2828.8,2827.9,0.002]
[1766013904104,0.46438023,2828.7,2827.9,0.002]
[1766013905024,0.46438023,2828.7,2827.6,0.002]
[1766013905222,0.46438023,2828.7,2827.7,3.7962]
[1766013905426,0.46438023,2828.7,2827.8,0.637]
[1766013905622,0.93047234,2828.7,2827.9,3.7962]
[1766013906638,8.00101602,2828.7,2827.6,0.002]
[1766013906940,8.00101602,2828.7,2827.6,3.7982]
[1766013908219,4.46574418,2828.7,2827.6,3.7982]
[1766013909145,8.00101602,2828.7,2827.6,3.7982]
[1766013909310,0.8001016,2828.6,2827.6,3.7982]
[1766013910740,4.33543873,2828.6,2827.6,3.7982]
[1766013910936,0.8001016,2828.6,2827.9,0.5848]
[1766013911141,0.8001016,2828.6,2827.9,3.4461]
[1766013911338,0.47997064,2828.5,2827.9,3.4461]
[1766013911941,4.00038942,2828.9,2828.1,0.5848]
[1766013912142,4.00038942,2828.9,2828.1,3.4461]
[1766013914335,0.001,2828.9,2828.3,2.8613]
[1766013914535,0.001,2828.9,2828.7,3.4461]
[1766013914842,0.001,2828.9,2827.9,6.15026268]
[1766013915144,0.001,2828.9,2828.3,2.8613]
[1766013915346,0.001,2828.9,2828.5,3.4461]
[1766013915553,0.001,2828.9,2828.6,3.4461]
[1766013915851,0.001,2828.9,2828.2,0.5848]
[1766013917250,0.001,2828.9,2828.2,3.4461]
[1766013918275,0.001,2828.9,2828.3,0.34461]
[1766013918567,0.001,2828.9,2828.4,3.4461]
[1766013919044,0.001,2828.9,2827.9,0.5848]
[1766013919251,0.001,2828.9,2828.0,3.4461]
[1766013919477,6.14844,2828.6,2827.6,0.002]
[1766013919618,0.46438023,2828.2,2827.6,0.002]
[1766013920132,0.46438023,2828.2,2827.3,0.002]
[1766013920950,0.46438023,2828.2,2827.9,0.002]
[1766013921154,0.46438023,2828.2,2827.3,0.002]
[1766013922035,4.00030237,2828.2,2827.3,0.002]
[1766013922236,0.46438023,2827.9,2827.3,0.002]
[1766013922438,0.46438023,2827.9,2827.0,0.002]
[1766013922956,8.81683353,2828.2,2827.0,0.002]
[1766013922957,6.61282023,2828.1,2827.0,0.002]
[1766013923348,6.61282023,2828.1,2827.0,3.4481]
[1766013924365,0.46438023,2827.9,2827.0,3.4481]
[1766013924568,0.40004481,2827.8,2827.0,3.4481]
[1766013924772,6.54848481,2827.8,2827.0,0.002]
[1766013925771,0.46438023,2827.7,2827.0,0.002]
[1766013931402,0.46438023,2827.4,2826.9,0.002]
[1766013933886,0.46438023,2827.4,2826.7,0.002]
[1766013934184,0.66128202,2827.3,2826.7,0.002]
[1766013934908,0.66128202,2827.3,2826.7,3.4481]
[1766013936108,0.66128202,2827.3,2826.7,0.002]
[1766013936995,0.46438023,2827.2,2826.7,0.002]
[1766013937395,6.61282023,2827.5,2826.7,0.002]
[1766013939288,10.14961254,2827.5,2826.7,0.002]
[1766013939718,0.46438023,2827.1,2826.7,0.002]
[1766013942613,6.14844,2827.2,2826.7,0.002]
[1766013942614,0.46438023,2827.3,2826.7,0.002]
[1766013942819,0.40012034,2827.2,2826.7,0.002]
[1766013943501,0.40012034,2827.2,2826.8,3.3473]
[1766013943703,0.40012034,2827.2,2826.8,2.8272]
[1766013943920,0.40012034,2827.2,2826.7,0.002]
[1766013944794,0.40012034,2827.2,2826.7,3.3493]
[1766013946018,10.14933214,2827.7,2826.8,3.3473]
[1766013946396,0.40004481,2827.8,2827.1,0.5201]
[1766013946595,0.46438023,2827.7,2827.1,0.5201]
[1766013946918,0.44007462,2827.6,2827.1,3.3473]
[1766013948314,0.90445485,2827.6,2827.1,3.3473]
[1766013948622,0.90445485,2827.6,2826.9,3.3473]
[1766013948820,0.44007462,2827.6,2826.9,3.3473]
[1766013949001,0.86442504,2827.8,2827.0,2.8272]
[1766013949323,0.40004481,2827.8,2827.1,0.5201]
[1766013949511,0.46438023,2827.7,2827.1,0.5201]
[1766013949716,0.46438023,2827.7,2826.8,3.3473]
[1766013949901,1.25808926,2827.7,2826.8,4.297274]
[1766013950106,4.79456688,2827.7,2826.8,4.297274]
[1766013950305,4.79456688,2827.7,2826.9,3.3473]
[1766013951122,14.4794845,2827.7,2826.7,0.002]
[1766013951319,1.48795293,2827.6,2826.7,0.002]
[1766013951637,1.48795293,2827.6,2826.8,3.3473]
[1766013952213,5.02461767,2827.6,2826.8,3.3473]
[1766013952726,5.02461767,2827.6,2826.8,3.3493]
[1766013952926,5.02561767,2827.6,2826.8,3.3493]
[1766013953127,0.62837069,2827.5,2826.8,3.3493]
[1766013954513,0.46438023,2827.4,2826.8,3.3493]
[1766013954826,0.62837069,2827.5,2826.8,3.3493]
[1766013955726,0.62837069,2827.5,2826.9,3.3473]
[1766013955932,0.62837069,2827.5,2827.0,2.8272]
[1766013956096,0.001,2827.6,2827.1,3.3473]
[1766013957327,0.001,2827.6,2826.9,3.3473]
[1766013961220,0.001,2827.6,2827.1,2.8272]
[1766013961421,0.001,2827.6,2827.1,0.5201]
[1766013961622,0.001,2827.6,2827.0,0.5201]
[1766013961814,0.001,2827.6,2827.0,3.3473]
[1766013963159,0.001,2827.6,2827.3,0.5201]
[1766013963453,0.001,2827.6,2827.4,3.3473]
[1766013963652,3.53682744,2828.2,2827.6,3.3473]
[1766013963653,0.46538023,2828.2,2827.6,3.3473]
[1766013963851,0.001,2828.2,2827.8,3.3473]
[1766013964057,0.001,2828.2,2827.4,0.33473]
[1766013964227,0.46438023,2828.1,2827.4,0.5201]
[1766013964427,0.91094014,2828.1,2827.4,0.5201]
[1766013964744,0.44655991,2828.1,2827.4,3.3473]
[1766013964930,0.91094014,2828.1,2827.4,3.3473]
[1766013965448,0.46438023,2828.0,2827.1,0.5201]
[1766013965749,0.46438023,2828.0,2827.1,3.3473]
[1766013965946,0.46438023,2828.0,2827.4,3.3473]
[1766013966158,0.91094014,2828.1,2827.4,3.3473]
[1766013967558,3.98251008,2828.1,2827.4,3.3473]
[1766013968273,0.44655991,2828.1,2827.4,3.3473]
[1766013969576,3.98352351,2828.1,2827.4,3.3473]
[1766013970960,0.001,2828.1,2827.7,0.5189]
[1766013971276,0.001,2828.1,2827.9,2.5662]
[1766013971477,0.001,2828.1,2827.9,3.0851]
[1766013971807,0.001,2828.1,2827.7,3.0851]
[1766013971961,0.001,2828.1,2827.4,3.0851]
[1766013972285,0.4012073,2828.1,2827.4,3.0851]
[1766013974059,0.46438023,2828.0,2827.4,3.0851]
[1766013974259,0.46438023,2828.0,2827.0,2.5662]
[1766013974489,0.4012073,2828.1,2827.2,3.0851]
[1766013975091,0.4012073,2828.1,2827.2,2.5662]
[1766013975274,0.4012073,2828.1,2827.3,3.0851]
[1766013975588,0.001,2828.1,2827.8,0.5189]
[1766013975784,0.001,2828.1,2827.8,3.0851]
[1766013976790,0.001,2828.1,2827.2,0.5189]